[Event "GER-ch Blitz 2019"]
[Site "Magdeburg"]
[Date "2019.05.25"]
[Round "3.13"]
[White "Hebbinghaus, Holger"]
[Black "Feuerstack, Aljoscha"]
[Result "1/2-1/2"]
[ECO "B20"]
[WhiteElo "2310"]
[BlackElo "2441"]
[Annotator "NA"]
[PlyCount "31"]
[EventDate "2019.05.25"]
[EventType "tourn"]
[EventCountry "GER"]
[Tiebreak "Number of wins+Number of black wins"]
[SourceTitle "playchess.com"]
[Source "ChessBase"]
[SourceQuality "1"]
[TimeControl "180+2"]

1. e4 {[%emt 0:00:00]} c5 {[%emt 0:00:00]} 2. Be2 {[%emt 0:00:01]} e6 {[%emt 0:
00:05]} 3. f4 {[%emt 0:00:02]} d6 {[%emt 0:00:13]} 4. Nf3 {[%emt 0:00:02]} Nf6
{[%emt 0:00:14]} 5. d3 {[%emt 0:00:01]} Be7 {[%emt 0:00:00]} 6. O-O {[%emt 0:
00:05]} b6 {[%emt 0:00:01]} 7. Kh1 {[%emt 0:00:24]} Bb7 {[%emt 0:00:01]} 8. Be3
{[%emt 0:00:06]} Nbd7 {[%emt 0:00:10]} 9. Nbd2 {[%emt 0:00:07]} Qc7 {[%emt 0:
00:11]} 10. c3 {[%emt 0:00:09]} h5 {[%emt 0:00:16]} 11. a4 {[%emt 0:00:12]} h4
{[%emt 0:00:03]} 12. Ng5 {[%emt 0:00:24]} Nh7 {[%emt 0:00:59]} 13. Nh3 {
[%emt 0:00:21]} Nhf6 {[%emt 0:00:36]} 14. Ng5 {[%emt 0:00:12]} Nh7 {[%emt 0:00:
01]} 15. Nh3 {[%emt 0:00:11]} Nhf6 {[%emt 0:00:01]} 16. Ng5 {[%emt 0:00:03]}
1/2-1/2

[Event "GER-ch Blitz 2019"]
[Site "Magdeburg"]
[Date "2019.05.25"]
[Round "3.14"]
[White "Voege, Tobias"]
[Black "Barzen, Pascal"]
[Result "0-1"]
[ECO "E21"]
[WhiteElo "2294"]
[BlackElo "2292"]
[Annotator "NA"]
[PlyCount "106"]
[EventDate "2019.05.25"]
[EventType "tourn"]
[EventCountry "GER"]
[Tiebreak "Number of wins+Number of black wins"]
[SourceTitle "playchess.com"]
[Source "ChessBase"]
[SourceQuality "1"]
[TimeControl "180+2"]

1. d4 {[%emt 0:00:00]} Nf6 {[%emt 0:00:00]} 2. c4 {[%emt 0:00:00]} e6 {[%emt 0:
00:00]} 3. Nc3 {[%emt 0:00:00]} Bb4 {[%emt 0:00:01]} 4. Nf3 {[%emt 0:00:01]}
O-O {[%emt 0:00:02]} 5. Bg5 {[%emt 0:00:01]} h6 {[%emt 0:00:05]} 6. Bh4 {
[%emt 0:00:01]} c5 {[%emt 0:00:05]} 7. e3 {[%emt 0:00:01]} d6 {[%emt 0:00:07]}
8. Bd3 {[%emt 0:00:03]} Nc6 {[%emt 0:00:01]} 9. O-O {[%emt 0:00:04]} Bxc3 {
[%emt 0:00:14]} 10. bxc3 {[%emt 0:00:01]} e5 {[%emt 0:00:00]} 11. d5 {[%emt 0:
00:17]} Na5 {[%emt 0:00:21]} 12. Nd2 {[%emt 0:00:02]} g5 {[%emt 0:00:08]} 13.
Bg3 {[%emt 0:00:02]} Qe7 {[%emt 0:00:02]} 14. Qc2 {[%emt 0:00:25]} Nh5 {
[%emt 0:00:10]} 15. Rae1 {[%emt 0:00:11]} f5 {[%emt 0:00:05]} 16. Be2 {[%emt 0:
00:51]} Qf7 {[%emt 0:00:19]} 17. f4 {[%emt 0:00:25]} Nxg3 {[%emt 0:00:04]} 18.
hxg3 {[%emt 0:00:01]} gxf4 {[%emt 0:00:31]} 19. gxf4 {[%emt 0:00:03]} e4 {
[%emt 0:00:03]} 20. Kf2 {[%emt 0:00:10]} Kh8 {[%emt 0:00:08]} 21. Rh1 {[%emt 0:
00:11]} Qg7 {[%emt 0:00:03]} 22. Rh3 {[%emt 0:00:17]} Rf6 {[%emt 0:00:02]} 23.
Reh1 {[%emt 0:00:03]} Bd7 {[%emt 0:00:04]} 24. Bh5 {[%emt 0:00:11]} Rg8 {
[%emt 0:00:02]} 25. g3 {[%emt 0:00:05]} b6 {[%emt 0:00:03]} 26. Qd1 {[%emt 0:
00:03]} b5 {[%emt 0:00:20]} 27. Qg1 {[%emt 0:00:04]} bxc4 {[%emt 0:00:03]} 28.
Qh2 {[%emt 0:00:01]} Rb8 {[%emt 0:00:06]} 29. Bf7 {[%emt 0:00:18]} Kh7 {
[%emt 0:00:11]} 30. Be6 {[%emt 0:00:01]} Bxe6 {[%emt 0:00:03]} 31. dxe6 Rxe6 {
[%emt 0:00:01]} 32. Rh5 {[%emt 0:00:02]} Rf6 {[%emt 0:00:03]} 33. Qh3 {[%emt 0:
00:02]} Rb2 {[%emt 0:00:01]} 34. Ke2 {[%emt 0:00:05]} Qg4+ {[%emt 0:00:10]} 35.
Qxg4 {[%emt 0:00:01]} fxg4 {[%emt 0:00:01]} 36. Rd1 {[%emt 0:00:04]} Rxa2 {
[%emt 0:00:01]} 37. Ke1 {[%emt 0:00:01]} Nb3 {[%emt 0:00:02]} 38. Nxe4 Rf8 {
[%emt 0:00:14]} 39. Rxd6 {[%emt 0:00:03]} Ra1+ {[%emt 0:00:13]} 40. Kf2 {
[%emt 0:00:01]} Ra2+ {[%emt 0:00:01]} 41. Kg1 {[%emt 0:00:01]} Ra1+ {[%emt 0:
00:01]} 42. Kg2 {[%emt 0:00:01]} Ra2+ {[%emt 0:00:00]} 43. Nf2 {[%emt 0:00:03]}
Re8 {[%emt 0:00:07]} 44. Rhxh6+ Kg7 45. Rhg6+ Kh7 46. Rxg4 {[%emt 0:00:09]}
Rxe3 {[%emt 0:00:03]} 47. Rh4+ {[%emt 0:00:02]} Kg7 {[%emt 0:00:01]} 48. f5 {
[%emt 0:00:05]} Nd2 {[%emt 0:00:02]} 49. Rg6+ {[%emt 0:00:02]} Kf7 {[%emt 0:00:
02]} 50. Rf4 Ne4 51. Rxe4 Rxe4 52. Rc6 Ree2 53. Rxc5 Rxf2+ 0-1

[Event "GER-ch Blitz 2019"]
[Site "Magdeburg"]
[Date "2019.05.25"]
[Round "3.15"]
[White "Heistermann, Till"]
[Black "Braeuning, Rudolf Wilhelm"]
[Result "0-1"]
[ECO "A06"]
[WhiteElo "2181"]
[BlackElo "2285"]
[Annotator "NA"]
[PlyCount "108"]
[EventDate "2019.05.25"]
[EventType "tourn"]
[EventCountry "GER"]
[Tiebreak "Number of wins+Number of black wins"]
[SourceTitle "playchess.com"]
[Source "ChessBase"]
[SourceQuality "1"]
[TimeControl "180+2"]

1. Nf3 {[%emt 0:00:00]} d5 {[%emt 0:00:03]} 2. g3 {[%emt 0:00:00]} Nf6 {
[%emt 0:00:01]} 3. Bg2 {[%emt 0:00:01]} Bf5 {[%emt 0:00:01]} 4. O-O {[%emt 0:
00:02]} e6 {[%emt 0:00:01]} 5. d3 {[%emt 0:00:02]} h6 {[%emt 0:00:02]} 6. b3 {
[%emt 0:00:02]} Be7 {[%emt 0:00:07]} 7. Bb2 {[%emt 0:00:01]} O-O {[%emt 0:00:
02]} 8. c4 {[%emt 0:00:01]} c5 {[%emt 0:00:04]} 9. Nbd2 {[%emt 0:00:04]} Nc6 {
[%emt 0:00:02]} 10. a3 {[%emt 0:00:03]} d4 {[%emt 0:00:05]} 11. Qc2 {[%emt 0:
00:13]} e5 {[%emt 0:00:05]} 12. Rfd1 {[%emt 0:00:27]} Qd7 {[%emt 0:00:13]} 13.
Ne1 {[%emt 0:00:03]} Rad8 {[%emt 0:00:06]} 14. Ne4 {[%emt 0:00:06]} Nxe4 {
[%emt 0:00:20]} 15. dxe4 {[%emt 0:00:02]} Bh3 {[%emt 0:00:01]} 16. Bh1 {
[%emt 0:00:07]} f5 {[%emt 0:00:05]} 17. Nd3 {[%emt 0:00:17]} f4 {[%emt 0:00:03]
} 18. b4 {[%emt 0:00:13]} cxb4 {[%emt 0:00:24]} 19. axb4 {[%emt 0:00:03]} Bxb4
{[%emt 0:00:15]} 20. Nxb4 {[%emt 0:00:06]} Nxb4 {[%emt 0:00:01]} 21. Qb3 {
[%emt 0:00:22]} Nc6 {[%emt 0:00:02]} 22. Rab1 {[%emt 0:00:20]} Qf7 {[%emt 0:00:
14]} 23. Bf3 {[%emt 0:00:09]} Rd7 {[%emt 0:00:14]} 24. Ba3 {[%emt 0:00:04]}
Rfd8 {[%emt 0:00:06]} 25. c5 {[%emt 0:00:10]} Be6 {[%emt 0:00:28]} 26. Qc2 {
[%emt 0:00:02]} d3 {[%emt 0:00:09]} 27. Rxd3 {[%emt 0:00:10]} Rxd3 {[%emt 0:00:
03]} 28. exd3 {[%emt 0:00:01]} fxg3 {[%emt 0:00:00]} 29. Bg2 {[%emt 0:00:09]}
Nd4 {[%emt 0:00:06]} 30. Qd2 {[%emt 0:00:04]} gxh2+ {[%emt 0:00:04]} 31. Kh1 {
[%emt 0:00:03]} Bg4 {[%emt 0:00:05]} 32. Bb2 {[%emt 0:00:15]} Nf3 {[%emt 0:00:
07]} 33. Qe3 {[%emt 0:00:01]} Nh4 {[%emt 0:00:04]} 34. Bxe5 {[%emt 0:00:09]}
Rf8 {[%emt 0:00:12]} 35. f4 {[%emt 0:00:02]} Ng6 {[%emt 0:00:03]} 36. d4 {
[%emt 0:00:03]} Nxf4 {[%emt 0:00:04]} 37. Bxf4 {[%emt 0:00:02]} Qxf4 {[%emt 0:
00:00]} 38. Qxf4 {[%emt 0:00:01]} Rxf4 {[%emt 0:00:01]} 39. Rxb7 {[%emt 0:00:
03]} a5 {[%emt 0:00:08]} 40. Ra7 {[%emt 0:00:01]} Rf2 {[%emt 0:00:02]} 41. Rxa5
{[%emt 0:00:05]} Rc2 {[%emt 0:00:02]} 42. Kxh2 {[%emt 0:00:01]} h5 {[%emt 0:00:
00]} 43. Kg3 {[%emt 0:00:01]} g5 {[%emt 0:00:01]} 44. e5 {[%emt 0:00:03]} Be6 {
[%emt 0:00:02]} 45. d5 {[%emt 0:00:01]} h4+ {[%emt 0:00:01]} 46. Kh2 {[%emt 0:
00:04]} Bxd5 {[%emt 0:00:01]} 47. Kh3 {[%emt 0:00:02]} Rxg2 {[%emt 0:00:04]}
48. Ra7 {[%emt 0:00:09]} Rg3+ {[%emt 0:00:02]} 49. Kh2 {[%emt 0:00:01]} Rc3 {
[%emt 0:00:01]} 50. Rd7 {[%emt 0:00:03]} Bc6 {[%emt 0:00:02]} 51. Rd6 {[%emt 0:
00:00]} Rxc5 {[%emt 0:00:03]} 52. e6 {[%emt 0:00:01]} Kf8 {[%emt 0:00:02]} 53.
Rd4 {[%emt 0:00:02]} Ke7 {[%emt 0:00:01]} 54. Rg4 {[%emt 0:00:01]} Kxe6 {
[%emt 0:00:01]} 0-1

[Event "GER-ch Blitz 2019"]
[Site "Magdeburg"]
[Date "2019.05.25"]
[Round "4.2"]
[White "Svane, Frederik"]
[Black "Zelbel, Patrick"]
[Result "0-1"]
[ECO "C63"]
[WhiteElo "2342"]
[BlackElo "2439"]
[Annotator "NA"]
[PlyCount "50"]
[EventDate "2019.05.25"]
[EventType "tourn"]
[EventCountry "GER"]
[Tiebreak "Number of wins+Number of black wins"]
[SourceTitle "playchess.com"]
[Source "ChessBase"]
[SourceQuality "1"]
[TimeControl "180+2"]

1. e4 {[%emt 0:00:00]} e5 {[%emt 0:00:00]} 2. Nf3 {[%emt 0:00:01]} Nc6 {
[%emt 0:00:00]} 3. Bb5 {[%emt 0:00:01]} f5 {[%emt 0:00:00]} 4. d3 {[%emt 0:00:
03]} fxe4 5. dxe4 Nf6 6. O-O Bc5 7. Nc3 {[%emt 0:00:38]} O-O {[%emt 0:00:16]}
8. Bxc6 {[%emt 0:00:18]} bxc6 {[%emt 0:00:01]} 9. Nxe5 {[%emt 0:00:02]} d6 {
[%emt 0:00:08]} 10. Nxc6 {[%emt 0:01:05]} Qe8 {[%emt 0:00:04]} 11. Nd4 {
[%emt 0:00:02]} Nxe4 {[%emt 0:00:30]} 12. Be3 {[%emt 0:00:53]} Nxc3 {[%emt 0:
00:15]} 13. bxc3 {[%emt 0:00:01]} Qg6 {[%emt 0:00:01]} 14. Qd3 {[%emt 0:00:07]}
Qf7 {[%emt 0:00:05]} 15. Qe4 {[%emt 0:00:07]} Ba6 {[%emt 0:00:09]} 16. Rfe1 {
[%emt 0:00:07]} Rae8 {[%emt 0:00:01]} 17. Qg4 {[%emt 0:00:03]} Bb7 {[%emt 0:00:
27]} 18. Qg3 {[%emt 0:00:02]} Qh5 {[%emt 0:00:31]} 19. Rab1 {[%emt 0:00:03]}
Bd5 {[%emt 0:00:05]} 20. a4 {[%emt 0:00:01]} Rf6 {[%emt 0:00:05]} 21. Qg5 {
[%emt 0:00:01]} Qf7 {[%emt 0:00:07]} 22. Qh4 {[%emt 0:00:04]} Rg6 {[%emt 0:00:
02]} 23. f3 {[%emt 0:00:01]} Bxf3 {[%emt 0:00:14]} 24. Nxf3 {[%emt 0:00:02]}
Qxf3 {[%emt 0:00:04]} 25. Qf2 {[%emt 0:00:03]} Bxe3 {[%emt 0:00:21]} 0-1

[Event "GER-ch Blitz 2019"]
[Site "Magdeburg"]
[Date "2019.05.25"]
[Round "4.3"]
[White "Kopylov, Daniel"]
[Black "Heidrich, Manfred"]
[Result "0-1"]
[ECO "B29"]
[WhiteElo "2263"]
[BlackElo "2351"]
[Annotator "NA"]
[PlyCount "110"]
[EventDate "2019.05.25"]
[EventType "tourn"]
[EventCountry "GER"]
[Tiebreak "Number of wins+Number of black wins"]
[SourceTitle "playchess.com"]
[Source "ChessBase"]
[SourceQuality "1"]
[TimeControl "180+2"]

1. e4 {[%emt 0:00:00]} c5 {[%emt 0:00:00]} 2. Nf3 {[%emt 0:00:00]} Nf6 {
[%emt 0:00:00]} 3. Nc3 {[%emt 0:00:02]} Nc6 {[%emt 0:00:01]} 4. d4 {[%emt 0:00:
04]} d5 {[%emt 0:00:02]} 5. exd5 {[%emt 0:00:07]} Nxd5 {[%emt 0:00:00]} 6. Nxd5
{[%emt 0:00:05]} Qxd5 {[%emt 0:00:01]} 7. dxc5 {[%emt 0:00:09]} Qxc5 {[%emt 0:
00:08]} 8. c3 {[%emt 0:00:05]} e5 {[%emt 0:00:10]} 9. Be3 {[%emt 0:00:01]} Qa5
{[%emt 0:00:00]} 10. Bc4 {[%emt 0:00:04]} Be7 {[%emt 0:00:03]} 11. Qd5 {
[%emt 0:00:10]} Qxd5 {[%emt 0:00:02]} 12. Bxd5 {[%emt 0:00:01]} f6 {[%emt 0:00:
04]} 13. O-O-O {[%emt 0:00:04]} Bf5 {[%emt 0:00:06]} 14. Nh4 {[%emt 0:00:07]}
Bd7 {[%emt 0:00:04]} 15. Bf7+ {[%emt 0:00:05]} Kxf7 {[%emt 0:00:08]} 16. Rxd7 {
[%emt 0:00:01]} Rab8 {[%emt 0:00:02]} 17. Rhd1 {[%emt 0:00:10]} Ke6 {[%emt 0:
00:03]} 18. g4 {[%emt 0:00:37]} Rhd8 {[%emt 0:00:04]} 19. Rxd8 {[%emt 0:00:03]}
Rxd8 {[%emt 0:00:01]} 20. Nf5 {[%emt 0:00:03]} Rxd1+ {[%emt 0:00:04]} 21. Kxd1
{[%emt 0:00:01]} Bf8 {[%emt 0:00:01]} 22. h4 {[%emt 0:00:04]} g6 {[%emt 0:00:
01]} 23. Ng3 {[%emt 0:00:02]} f5 {[%emt 0:00:06]} 24. gxf5+ {[%emt 0:00:02]}
gxf5 {[%emt 0:00:00]} 25. Bc1 {[%emt 0:00:16]} f4 {[%emt 0:00:15]} 26. Ne4 {
[%emt 0:00:01]} h5 {[%emt 0:00:05]} 27. f3 {[%emt 0:00:14]} Be7 {[%emt 0:00:01]
} 28. Bd2 {[%emt 0:00:01]} Bxh4 {[%emt 0:00:13]} 29. Nc5+ {[%emt 0:00:04]} Kf5
{[%emt 0:00:01]} 30. Nxb7 {[%emt 0:00:01]} Be7 {[%emt 0:00:03]} 31. b4 {
[%emt 0:00:08]} e4 {[%emt 0:00:06]} 32. fxe4+ {[%emt 0:00:10]} Kxe4 {[%emt 0:
00:01]} 33. Ke2 {[%emt 0:00:00]} Ne5 {[%emt 0:00:05]} 34. Na5 {[%emt 0:00:06]}
h4 {[%emt 0:00:06]} 35. Nb3 {[%emt 0:00:09]} f3+ {[%emt 0:00:12]} 36. Kf1 {
[%emt 0:00:03]} Ng4 {[%emt 0:00:10]} 37. Be1 {[%emt 0:00:10]} h3 {[%emt 0:00:
07]} 38. Kg1 {[%emt 0:00:29]} h2+ {[%emt 0:00:08]} 39. Kh1 {[%emt 0:00:01]} Bd6
{[%emt 0:00:00]} 40. Nd2+ {[%emt 0:00:03]} Kf4 {[%emt 0:00:12]} 41. c4 {
[%emt 0:00:03]} f2 {[%emt 0:00:20]} 42. Bxf2 {[%emt 0:00:06]} Nxf2+ {[%emt 0:
00:00]} 43. Kxh2 {[%emt 0:00:02]} Ke3+ {[%emt 0:00:01]} 44. Kg2 {[%emt 0:00:01]
} Kxd2 {[%emt 0:00:01]} 45. c5 {[%emt 0:00:06]} Ne4 {[%emt 0:00:04]} 46. Kf3 {
[%emt 0:00:02]} Kd3 {[%emt 0:00:01]} 47. cxd6 {[%emt 0:00:02]} Nxd6 {[%emt 0:
00:01]} 48. Kf4 {[%emt 0:00:06]} Kc4 {[%emt 0:00:01]} 49. Ke5 {[%emt 0:00:00]}
Nb5 {[%emt 0:00:01]} 50. a4 {[%emt 0:00:01]} Kxb4 {[%emt 0:00:08]} 51. axb5 {
[%emt 0:00:04]} Kxb5 {[%emt 0:00:01]} 52. Kd4 {[%emt 0:00:01]} Kb4 {[%emt 0:00:
01]} 53. Kd3 Kb3 54. Kd4 {[%emt 0:00:01]} a5 {[%emt 0:00:01]} 55. Kc5 {[%emt 0:
00:01]} a4 {[%emt 0:00:00]} 0-1

[Event "GER-ch Blitz 2019"]
[Site "Magdeburg"]
[Date "2019.05.25"]
[Round "4.5"]
[White "Stein, Robert"]
[Black "Kopylov, Michael"]
[Result "1/2-1/2"]
[ECO "D30"]
[WhiteElo "2318"]
[BlackElo "2413"]
[Annotator "NA"]
[PlyCount "58"]
[EventDate "2019.05.25"]
[EventType "tourn"]
[EventCountry "GER"]
[Tiebreak "Number of wins+Number of black wins"]
[SourceTitle "playchess.com"]
[Source "ChessBase"]
[SourceQuality "1"]
[TimeControl "180+2"]

1. d4 {[%emt 0:00:00]} d5 {[%emt 0:00:00]} 2. c4 {[%emt 0:00:01]} e6 {[%emt 0:
00:01]} 3. Nf3 {[%emt 0:00:01]} c6 {[%emt 0:00:01]} 4. g3 {[%emt 0:00:03]} dxc4
{[%emt 0:00:02]} 5. Bg2 {[%emt 0:00:04]} b5 {[%emt 0:00:00]} 6. Ne5 {[%emt 0:
00:03]} Bb7 {[%emt 0:00:01]} 7. a4 {[%emt 0:00:06]} a6 {[%emt 0:00:04]} 8. Nc3
{[%emt 0:00:02]} Qb6 {[%emt 0:00:10]} 9. O-O {[%emt 0:00:12]} Nf6 {[%emt 0:00:
01]} 10. e4 {[%emt 0:00:24]} Nbd7 {[%emt 0:00:03]} 11. Nxd7 {[%emt 0:00:02]}
Nxd7 {[%emt 0:00:01]} 12. d5 {[%emt 0:00:01]} cxd5 {[%emt 0:00:51]} 13. exd5 {
[%emt 0:00:01]} e5 {[%emt 0:00:01]} 14. Be3 {[%emt 0:00:19]} Bc5 {[%emt 0:00:
06]} 15. Bxc5 {[%emt 0:00:01]} Nxc5 {[%emt 0:00:05]} 16. Qh5 {[%emt 0:00:08]}
O-O {[%emt 0:00:08]} 17. Qxe5 {[%emt 0:00:04]} Nd3 {[%emt 0:00:02]} 18. Qe2 {
[%emt 0:00:07]} Rfe8 {[%emt 0:00:02]} 19. Qd2 {[%emt 0:00:02]} Rad8 {[%emt 0:
00:05]} 20. axb5 {[%emt 0:00:03]} axb5 21. b4 {[%emt 0:00:19]} Nxb4 {[%emt 0:
00:47]} 22. Rab1 {[%emt 0:00:03]} Qc5 {[%emt 0:00:16]} 23. Ne4 {[%emt 0:00:34]}
Rxe4 {[%emt 0:00:31]} 24. Qxb4 {[%emt 0:00:01]} Qxb4 {[%emt 0:00:07]} 25. Rxb4
{[%emt 0:00:01]} Rd4 {[%emt 0:00:04]} 26. Rxb5 Bxd5 {[%emt 0:00:02]} 27. Rc5 {
[%emt 0:00:16]} Bxg2 {[%emt 0:00:05]} 28. Kxg2 {[%emt 0:00:01]} h6 {[%emt 0:00:
04]} 29. Rc1 {[%emt 0:00:02]} R8d6 {[%emt 0:00:11]} 1/2-1/2

[Event "GER-ch Blitz 2019"]
[Site "Magdeburg"]
[Date "2019.05.25"]
[Round "4.7"]
[White "Frischmann, Rick"]
[Black "Braeuer, Franz"]
[Result "1-0"]
[ECO "B51"]
[WhiteElo "2320"]
[BlackElo "2445"]
[Annotator "NA"]
[PlyCount "101"]
[EventDate "2019.05.25"]
[EventType "tourn"]
[EventCountry "GER"]
[Tiebreak "Number of wins+Number of black wins"]
[SourceTitle "playchess.com"]
[Source "ChessBase"]
[SourceQuality "1"]
[TimeControl "180+2"]

1. e4 {[%emt 0:00:00]} c5 {[%emt 0:00:00]} 2. Nf3 {[%emt 0:00:01]} d6 {[%emt 0:
00:00]} 3. Bb5+ {[%emt 0:00:01]} Nd7 4. Ba4 a6 {[%emt 0:00:06]} 5. c4 {[%emt 0:
00:01]} Ngf6 {[%emt 0:00:10]} 6. O-O {[%emt 0:00:02]} e6 {[%emt 0:00:06]} 7.
Nc3 {[%emt 0:00:04]} Be7 {[%emt 0:00:01]} 8. d4 {[%emt 0:00:01]} cxd4 {[%emt 0:
00:01]} 9. Qxd4 {[%emt 0:00:00]} O-O {[%emt 0:00:09]} 10. Rd1 {[%emt 0:00:01]}
Qc7 {[%emt 0:00:06]} 11. Bxd7 {[%emt 0:00:02]} Bxd7 {[%emt 0:00:04]} 12. Bf4 {
[%emt 0:00:15]} Bc6 {[%emt 0:00:51]} 13. Bxd6 {[%emt 0:00:32]} Bxd6 {[%emt 0:
00:01]} 14. Qxd6 {[%emt 0:00:00]} Qxd6 {[%emt 0:00:02]} 15. Rxd6 {[%emt 0:00:
01]} Bxe4 {[%emt 0:00:24]} 16. Nxe4 {[%emt 0:00:27]} Nxe4 {[%emt 0:00:01]} 17.
Rd4 {[%emt 0:00:17]} Nf6 {[%emt 0:00:01]} 18. Rad1 {[%emt 0:00:01]} Rac8 {
[%emt 0:00:06]} 19. b4 {[%emt 0:00:01]} h6 {[%emt 0:00:19]} 20. Ne5 {[%emt 0:
00:01]} a5 {[%emt 0:00:10]} 21. a3 {[%emt 0:00:29]} axb4 22. axb4 {[%emt 0:00:
01]} Ra8 {[%emt 0:00:24]} 23. f3 {[%emt 0:00:18]} Ra4 {[%emt 0:00:06]} 24. b5 {
[%emt 0:00:13]} g6 {[%emt 0:00:11]} 25. c5 {[%emt 0:00:26]} Rxd4 {[%emt 0:00:
12]} 26. Rxd4 {[%emt 0:00:01]} Nd5 {[%emt 0:00:05]} 27. Ra4 {[%emt 0:00:09]}
Rc8 {[%emt 0:00:03]} 28. Ra7 {[%emt 0:00:20]} Rxc5 {[%emt 0:00:10]} 29. Rxb7 {
[%emt 0:00:01]} Nc7 {[%emt 0:00:06]} 30. b6 {[%emt 0:00:03]} Nd5 {[%emt 0:00:
02]} 31. Nxf7 {[%emt 0:00:06]} Rb5 {[%emt 0:00:00]} 32. Nxh6+ {[%emt 0:00:01]}
Kf8 {[%emt 0:00:01]} 33. Rb8+ {[%emt 0:00:02]} Ke7 {[%emt 0:00:01]} 34. b7 Kd7
{[%emt 0:00:02]} 35. Rg8 {[%emt 0:00:04]} Rxb7 {[%emt 0:00:01]} 36. Rxg6 {
[%emt 0:00:01]} Rb2 {[%emt 0:00:01]} 37. Ng4 {[%emt 0:00:02]} Ke7 {[%emt 0:00:
00]} 38. h4 {[%emt 0:00:02]} Rxg2+ {[%emt 0:00:03]} 39. Kxg2 Nf4+ 40. Kg3 {
[%emt 0:00:03]} Nxg6 41. h5 Nf8 {[%emt 0:00:03]} 42. Kf4 {[%emt 0:00:01]} Kf7 {
[%emt 0:00:01]} 43. Kg5 {[%emt 0:00:01]} Kg7 {[%emt 0:00:03]} 44. h6+ {[%emt 0:
00:01]} Kh8 {[%emt 0:00:02]} 45. Nf6 {[%emt 0:00:01]} e5 {[%emt 0:00:11]} 46.
Kf5 {[%emt 0:00:01]} e4 {[%emt 0:00:01]} 47. fxe4 {[%emt 0:00:02]} Ng6 {
[%emt 0:00:02]} 48. Ng4 {[%emt 0:00:05]} Nh4+ {[%emt 0:00:01]} 49. Kf6 {
[%emt 0:00:01]} Nf3 {[%emt 0:00:01]} 50. e5 Nd4 {[%emt 0:00:05]} 51. e6 {
[%emt 0:00:02]} 1-0